[Event "*** Titled Tuesday Blitz"]
[Site "Chess.com"]
[Date "2020.10.20"]
[Round "5"]
[White "LaPorfia"]
[Black "SCIM"]
[Result "1-0"]
[WhiteElo "2325"]
[BlackElo "2472"]
[TimeControl "180+1"]
[EndTime "10:57:38 PDT"]
[Termination "LaPorfia won by resignation"]

1. d4 {[%clk 0:03:00.9]} 1... Nf6 {[%clk 0:02:55.7]} 2. Nf3 {[%clk 0:02:59.9]}
2... g6 {[%clk 0:02:55.5]} 3. Nc3 {[%clk 0:02:59]} 3... d5 {[%clk 0:02:54.4]} 4.
Bf4 {[%clk 0:02:58.2]} 4... Bg7 {[%clk 0:02:53.9]} 5. e3 {[%clk 0:02:57.2]} 5...
O-O {[%clk 0:02:53.1]} 6. Be2 {[%clk 0:02:55.9]} 6... c5 {[%clk 0:02:52.6]} 7.
O-O {[%clk 0:02:53.8]} 7... Qb6 {[%clk 0:02:50.1]} 8. Rb1 {[%clk 0:02:50.4]}
8... c4 {[%clk 0:02:38.1]} 9. Ne5 {[%clk 0:02:43]} 9... Nc6 {[%clk 0:02:36.4]}
10. Bf3 {[%clk 0:02:38.1]} 10... Be6 {[%clk 0:02:34.9]} 11. h3 {[%clk
0:02:18.8]} 11... Qa5 {[%clk 0:02:17.8]} 12. Nxc6 {[%clk 0:02:15]} 12... bxc6
{[%clk 0:02:17]} 13. Be5 {[%clk 0:02:15.2]} 13... Rfd8 {[%clk 0:02:09.5]} 14.
Qe1 {[%clk 0:01:46]} 14... Bf5 {[%clk 0:01:45.8]} 15. e4 {[%clk 0:01:38.7]}
15... dxe4 {[%clk 0:01:45.5]} 16. Be2 {[%clk 0:01:24.3]} 16... Be6 {[%clk
0:01:35.3]} 17. b3 {[%clk 0:00:38.2]} 17... cxb3 {[%clk 0:01:33.3]} 18. axb3
{[%clk 0:00:39.1]} 18... Kf8 {[%clk 0:01:17.6]} 19. Ra1 {[%clk 0:00:37.2]} 19...
Qb6 {[%clk 0:01:16.7]} 20. Na4 {[%clk 0:00:35.2]} 20... Qb7 {[%clk 0:00:59]} 21.
Nc5 {[%clk 0:00:34.9]} 21... Qb6 {[%clk 0:00:53.8]} 22. Ra6 {[%clk 0:00:30.8]}
22... Bd5 {[%clk 0:00:37]} 23. c4 {[%clk 0:00:20.5]} 23... Be6 {[%clk
0:00:21.2]} 24. Rxb6 {[%clk 0:00:20.1]} 24... axb6 {[%clk 0:00:22.1]} 25. Nxe6+
{[%clk 0:00:20.5]} 25... fxe6 {[%clk 0:00:22.9]} 26. Bd1 {[%clk 0:00:19.3]}
26... Ra1 {[%clk 0:00:17.6]} 27. Qc3 {[%clk 0:00:17.9]} 27... Ra2 {[%clk
0:00:15]} 28. Bc2 {[%clk 0:00:17.4]} 28... Kf7 {[%clk 0:00:10.4]} 29. Ra1 {[%clk
0:00:16.4]} 29... Rxa1+ {[%clk 0:00:08.3]} 30. Qxa1 {[%clk 0:00:17.3]} 30... c5
{[%clk 0:00:08.9]} 31. dxc5 {[%clk 0:00:16.6]} 31... bxc5 {[%clk 0:00:09.5]} 32.
Bxe4 {[%clk 0:00:14.1]} 32... Nxe4 {[%clk 0:00:07.9]} 33. Bxg7 {[%clk
0:00:14.1]} 33... Rd2 {[%clk 0:00:07.8]} 34. Be5 {[%clk 0:00:11.9]} 34... Nxf2
{[%clk 0:00:06.5]} 35. Qe1 {[%clk 0:00:09.2]} 35... Rd1 {[%clk 0:00:04.2]} 36.
Kxf2 {[%clk 0:00:08.4]} 36... Rxe1 {[%clk 0:00:04.5]} 37. Kxe1 {[%clk
0:00:09.1]} 37... g5 {[%clk 0:00:05.4]} 38. Bc7 {[%clk 0:00:07.4]} 38... Kg6
{[%clk 0:00:06.3]} 39. Bb6 {[%clk 0:00:08]} 39... Kf5 {[%clk 0:00:07.2]} 40.
Bxc5 {[%clk 0:00:08.6]} 40... Ke4 {[%clk 0:00:08]} 41. b4 {[%clk 0:00:09]} 41...
Kd3 {[%clk 0:00:06.1]} 42. b5 {[%clk 0:00:09.4]} 42... Kxc4 {[%clk 0:00:07]} 43.
b6 {[%clk 0:00:10.3]} 43... Kxc5 {[%clk 0:00:07.9]} 44. b7 {[%clk 0:00:11.1]}
44... e5 {[%clk 0:00:08.3]} 45. b8=Q {[%clk 0:00:12]} 45... e4 {[%clk
0:00:09.2]} 46. Qh8 {[%clk 0:00:12.5]} 1-0

[Event "*** Titled Tuesday Blitz"]
[Site "Chess.com"]
[Date "2020.10.20"]
[Round "5"]
[White "northridgehawk"]
[Black "MidnightFox"]
[Result "1/2-1/2"]
[WhiteElo "2229"]
[BlackElo "2435"]
[TimeControl "180+1"]
[EndTime "10:57:38 PDT"]
[Termination "Game drawn by repetition"]

1. e4 {[%clk 0:02:59.3]} 1... e5 {[%clk 0:02:59.6]} 2. Nf3 {[%clk 0:02:54.3]}
2... Nc6 {[%clk 0:02:59.6]} 3. Bb5 {[%clk 0:02:52.7]} 3... a6 {[%clk 0:02:59]}
4. Ba4 {[%clk 0:02:51.5]} 4... Nf6 {[%clk 0:02:58.1]} 5. d3 {[%clk 0:02:49.1]}
5... b5 {[%clk 0:02:57.8]} 6. Bb3 {[%clk 0:02:48.3]} 6... Bc5 {[%clk 0:02:58.2]}
7. Nc3 {[%clk 0:02:46.3]} 7... d6 {[%clk 0:02:57.3]} 8. O-O {[%clk 0:02:46.1]}
8... Na5 {[%clk 0:02:56.7]} 9. Nd5 {[%clk 0:02:44.8]} 9... Nxb3 {[%clk
0:02:55.7]} 10. axb3 {[%clk 0:02:45.7]} 10... Nxd5 {[%clk 0:02:54.1]} 11. exd5
{[%clk 0:02:46.6]} 11... O-O {[%clk 0:02:53.9]} 12. c3 {[%clk 0:02:45.7]} 12...
Bg4 {[%clk 0:02:51.3]} 13. h3 {[%clk 0:02:29.4]} 13... Bh5 {[%clk 0:02:50.2]}
14. b4 {[%clk 0:02:29]} 14... Bb6 {[%clk 0:02:48.7]} 15. Be3 {[%clk 0:02:24.4]}
15... Qf6 {[%clk 0:02:44.4]} 16. g4 {[%clk 0:02:17.1]} 16... Bxe3 {[%clk
0:02:33.6]} 17. fxe3 {[%clk 0:02:12.4]} 17... Bg6 {[%clk 0:02:32.3]} 18. e4
{[%clk 0:01:52.8]} 18... Qf4 {[%clk 0:02:15.3]} 19. Kg2 {[%clk 0:01:49.1]} 19...
h5 {[%clk 0:02:13]} 20. g5 {[%clk 0:01:22.9]} 20... h4 {[%clk 0:02:12.2]} 21.
Qe1 {[%clk 0:01:20.6]} 21... Bh5 {[%clk 0:02:09]} 22. Nxh4 {[%clk 0:01:11.2]}
22... Qxg5+ {[%clk 0:02:02.5]} 23. Qg3 {[%clk 0:01:10.7]} 23... Qxg3+ {[%clk
0:01:44.6]} 24. Kxg3 {[%clk 0:01:11.6]} 24... g6 {[%clk 0:01:43.6]} 25. Rf2
{[%clk 0:01:01.8]} 25... f5 {[%clk 0:01:41.4]} 26. exf5 {[%clk 0:01:00.3]} 26...
gxf5 {[%clk 0:01:42.3]} 27. Rxf5 {[%clk 0:00:59.5]} 27... Be2 {[%clk 0:01:35.3]}
28. d4 {[%clk 0:00:48]} 28... e4 {[%clk 0:01:30.2]} 29. Kf4 {[%clk 0:00:46.6]}
29... Bd3 {[%clk 0:01:21.2]} 30. Rg1+ {[%clk 0:00:44.7]} 30... Kh7 {[%clk
0:01:19.2]} 31. Ke3 {[%clk 0:00:40.8]} 31... Rxf5 {[%clk 0:01:16.9]} 32. Nxf5
{[%clk 0:00:41.7]} 32... Rf8 {[%clk 0:01:15.4]} 33. Rg5 {[%clk 0:00:41.1]} 33...
Rf7 {[%clk 0:01:09.4]} 34. h4 {[%clk 0:00:40.1]} 34... Kh8 {[%clk 0:01:07]} 35.
h5 {[%clk 0:00:37.2]} 35... Kh7 {[%clk 0:01:07.2]} 36. h6 {[%clk 0:00:36.7]}
36... Kh8 {[%clk 0:01:06.2]} 37. Nh4 {[%clk 0:00:19.5]} 37... Kh7 {[%clk
0:01:02]} 38. Rf5 {[%clk 0:00:19.2]} 38... Re7 {[%clk 0:00:54.7]} 39. Rf6 {[%clk
0:00:18.7]} 39... Re8 {[%clk 0:00:52]} 40. Nf5 {[%clk 0:00:18.8]} 40... Rg8
{[%clk 0:00:44.2]} 41. Rf7+ {[%clk 0:00:17.8]} 41... Kh8 {[%clk 0:00:44]} 42.
Rg7 {[%clk 0:00:17.4]} 42... Rf8 {[%clk 0:00:44.1]} 43. Ne7 {[%clk 0:00:16]}
43... Rf3+ {[%clk 0:00:39.9]} 44. Kd2 {[%clk 0:00:15.4]} 44... Rf2+ {[%clk
0:00:40.3]} 45. Kd1 {[%clk 0:00:15.6]} 45... e3 {[%clk 0:00:35.9]} 46. Ng6+
{[%clk 0:00:13.4]} 46... Bxg6 {[%clk 0:00:35.8]} 47. Rxg6 {[%clk 0:00:14.3]}
47... Rxb2 {[%clk 0:00:34]} 48. Re6 {[%clk 0:00:13.7]} 48... Kh7 {[%clk
0:00:31.5]} 49. Rxe3 {[%clk 0:00:14]} 49... Kxh6 {[%clk 0:00:31.8]} 50. Re2
{[%clk 0:00:13.8]} 50... Rxe2 {[%clk 0:00:16.9]} 51. Kxe2 {[%clk 0:00:14.7]}
51... Kh5 {[%clk 0:00:17.7]} 52. Kf3 {[%clk 0:00:14.8]} 52... Kg5 {[%clk
0:00:18]} 53. Kg3 {[%clk 0:00:14.7]} 53... Kf5 {[%clk 0:00:18.6]} 54. Kf3 {[%clk
0:00:14.6]} 54... Kg5 {[%clk 0:00:19]} 55. Kg3 {[%clk 0:00:13.9]} 55... Kf5
{[%clk 0:00:19.5]} 56. Kf3 {[%clk 0:00:14]} 56... Kg5 {[%clk 0:00:19.9]} 1/2-1/2

[Event "*** Titled Tuesday Blitz"]
[Site "Chess.com"]
[Date "2020.10.20"]
[Round "5"]
[White "TST2014"]
[Black "ural58"]
[Result "1-0"]
[WhiteElo "2515"]
[BlackElo "2342"]
[TimeControl "180+1"]
[EndTime "10:57:40 PDT"]
[Termination "TST2014 won by resignation"]

1. d4 {[%clk 0:03:00.9]} 1... d5 {[%clk 0:02:47.8]} 2. c4 {[%clk 0:02:58]} 2...
e5 {[%clk 0:02:18.2]} 3. dxe5 {[%clk 0:02:56.6]} 3... d4 {[%clk 0:02:16.5]} 4.
Nf3 {[%clk 0:02:54.9]} 4... Nc6 {[%clk 0:02:13.5]} 5. a3 {[%clk 0:02:54.3]} 5...
g6 {[%clk 0:02:11.1]} 6. e3 {[%clk 0:02:51.2]} 6... Bg4 {[%clk 0:02:00.1]} 7.
Be2 {[%clk 0:02:43.8]} 7... Bxf3 {[%clk 0:01:57.1]} 8. Bxf3 {[%clk 0:02:43.5]}
8... Nge7 {[%clk 0:01:58]} 9. exd4 {[%clk 0:02:40.9]} 9... Qxd4 {[%clk
0:01:55.7]} 10. O-O {[%clk 0:02:24.7]} 10... Bg7 {[%clk 0:01:39.7]} 11. Qb3
{[%clk 0:02:21]} 11... Qb6 {[%clk 0:01:29.8]} 12. Qb5 {[%clk 0:02:08.9]} 12...
O-O-O {[%clk 0:01:26]} 13. Bg5 {[%clk 0:02:03.4]} 13... Rhe8 {[%clk 0:01:22.4]}
14. Bf6 {[%clk 0:02:02.5]} 14... Bxf6 {[%clk 0:00:57.6]} 15. exf6 {[%clk
0:02:03.4]} 15... Nf5 {[%clk 0:00:58]} 16. Qxb6 {[%clk 0:01:48.2]} 16... axb6
{[%clk 0:00:57.6]} 17. Bg4 {[%clk 0:01:48.1]} 17... Nd4 {[%clk 0:00:56.8]} 18.
Nc3 {[%clk 0:01:46.7]} 18... h5 {[%clk 0:00:56.7]} 19. Bh3 {[%clk 0:01:45.8]}
19... g5 {[%clk 0:00:38.8]} 20. Bxf5+ {[%clk 0:01:42.5]} 20... Nxf5 {[%clk
0:00:39.7]} 21. Rfe1 {[%clk 0:01:39.4]} 21... c6 {[%clk 0:00:36.1]} 22. Ne4
{[%clk 0:01:26.4]} 22... Re6 {[%clk 0:00:35]} 23. Nxg5 {[%clk 0:01:24.3]} 23...
Rxf6 {[%clk 0:00:34.6]} 24. Rad1 {[%clk 0:01:22.2]} 24... Nd4 {[%clk 0:00:34.1]}
25. Ne4 {[%clk 0:01:18.6]} 25... Re6 {[%clk 0:00:33.2]} 26. f3 {[%clk 0:01:18]}
26... f5 {[%clk 0:00:28]} 27. Ng5 {[%clk 0:01:16]} 27... Rxe1+ {[%clk
0:00:27.5]} 28. Rxe1 {[%clk 0:01:15.8]} 28... Nb3 {[%clk 0:00:26.1]} 29. Re2
{[%clk 0:01:07.3]} 29... Nc1 {[%clk 0:00:23.8]} 30. Rc2 {[%clk 0:01:01.4]} 30...
Rd1+ {[%clk 0:00:22.6]} 31. Kf2 {[%clk 0:01:00.5]} 31... Rh1 {[%clk 0:00:20.6]}
32. h3 {[%clk 0:00:54.1]} 32... f4 {[%clk 0:00:20.8]} 33. Ne6 {[%clk 0:00:51.5]}
33... Nd3+ {[%clk 0:00:20.9]} 34. Ke2 {[%clk 0:00:51.4]} 34... Kd7 {[%clk
0:00:20.2]} 35. Kxd3 {[%clk 0:00:50.2]} 35... Kxe6 {[%clk 0:00:20.5]} 36. Ke4
{[%clk 0:00:50.8]} 36... h4 {[%clk 0:00:11.8]} 37. Kxf4 {[%clk 0:00:50.7]} 37...
Rd1 {[%clk 0:00:12.7]} 38. Kg5 {[%clk 0:00:49.4]} 38... Ke5 {[%clk 0:00:12.7]}
39. Kxh4 {[%clk 0:00:48.4]} 39... Kf4 {[%clk 0:00:12.4]} 40. Re2 {[%clk
0:00:45.2]} 40... Rd7 {[%clk 0:00:07.2]} 41. Re4+ {[%clk 0:00:45.1]} 41... Kf5
{[%clk 0:00:07.7]} 42. g4+ {[%clk 0:00:45.6]} 42... Kf6 {[%clk 0:00:08.1]} 43.
f4 {[%clk 0:00:44.8]} 43... Rd2 {[%clk 0:00:08.2]} 44. g5+ {[%clk 0:00:44.9]}
44... Kf5 {[%clk 0:00:07.2]} 45. Re7 {[%clk 0:00:41.2]} 45... Rxb2 {[%clk
0:00:06.9]} 46. Rf7+ {[%clk 0:00:39.6]} 46... Kg6 {[%clk 0:00:06.6]} 47. Rf6+
{[%clk 0:00:39.4]} 47... Kg7 {[%clk 0:00:06.9]} 48. Kg4 {[%clk 0:00:38.3]} 48...
b5 {[%clk 0:00:07.8]} 49. cxb5 {[%clk 0:00:38]} 49... Rxb5 {[%clk 0:00:08.7]}
50. h4 {[%clk 0:00:38.6]} 50... Rb1 {[%clk 0:00:08.6]} 51. h5 {[%clk 0:00:38.8]}
51... c5 {[%clk 0:00:08.8]} 52. h6+ {[%clk 0:00:39.1]} 52... Kh7 {[%clk
0:00:09.1]} 53. Rf7+ {[%clk 0:00:39.6]} 53... Kg8 {[%clk 0:00:09.1]} 54. g6
{[%clk 0:00:39.5]} 54... Rg1+ {[%clk 0:00:08.8]} 55. Kf5 {[%clk 0:00:39.6]}
55... b5 {[%clk 0:00:09.7]} 56. h7+ {[%clk 0:00:39.8]} 56... Kh8 {[%clk
0:00:10.1]} 57. Rf8+ {[%clk 0:00:40.1]} 1-0

[Event "*** Titled Tuesday Blitz"]
[Site "Chess.com"]
[Date "2020.10.20"]
[Round "5"]
[White "HanSchut"]
[Black "atalz0"]
[Result "1-0"]
[WhiteElo "2266"]
[BlackElo "2398"]
[TimeControl "180+1"]
[EndTime "10:57:40 PDT"]
[Termination "HanSchut won on time"]

1. e4 {[%clk 0:03:00.9]} 1... d5 {[%clk 0:02:58.6]} 2. exd5 {[%clk 0:03:00.6]}
2... Nf6 {[%clk 0:02:59.1]} 3. Bb5+ {[%clk 0:03:00]} 3... Bd7 {[%clk 0:02:58.9]}
4. Be2 {[%clk 0:02:59.8]} 4... Nxd5 {[%clk 0:02:58.7]} 5. d4 {[%clk 0:03:00.4]}
5... Bf5 {[%clk 0:02:59]} 6. c4 {[%clk 0:03:00.9]} 6... Nb4 {[%clk 0:02:57.8]}
7. Na3 {[%clk 0:03:01.1]} 7... e6 {[%clk 0:02:57.3]} 8. Nf3 {[%clk 0:02:56.4]}
8... Be7 {[%clk 0:02:54.8]} 9. O-O {[%clk 0:02:56.2]} 9... O-O {[%clk
0:02:54.6]} 10. Be3 {[%clk 0:02:53.9]} 10... N8c6 {[%clk 0:02:53.1]} 11. Qd2
{[%clk 0:02:31.2]} 11... a6 {[%clk 0:02:39.2]} 12. h3 {[%clk 0:02:17.3]} 12...
Be4 {[%clk 0:02:37.9]} 13. Rfd1 {[%clk 0:02:03.9]} 13... Bf6 {[%clk 0:02:37.4]}
14. Ng5 {[%clk 0:01:46.2]} 14... Bg6 {[%clk 0:02:13.7]} 15. d5 {[%clk
0:01:41.7]} 15... exd5 {[%clk 0:02:03.2]} 16. cxd5 {[%clk 0:01:42]} 16... Ne5
{[%clk 0:01:44.9]} 17. Qxb4 {[%clk 0:01:25.9]} 17... Bxg5 {[%clk 0:01:43.9]} 18.
Bxg5 {[%clk 0:01:19.9]} 18... Qxg5 {[%clk 0:01:40.8]} 19. f4 {[%clk 0:01:16.3]}
19... Qh4 {[%clk 0:01:40.6]} 20. Qe1 {[%clk 0:01:04.8]} 20... Qxf4 {[%clk
0:01:37.9]} 21. Rac1 {[%clk 0:01:00]} 21... Rfe8 {[%clk 0:01:20.6]} 22. Qf2
{[%clk 0:00:54.2]} 22... Qxf2+ {[%clk 0:01:07.2]} 23. Kxf2 {[%clk 0:00:55.1]}
23... Re7 {[%clk 0:01:06.5]} 24. Rc3 {[%clk 0:00:50.1]} 24... Rd8 {[%clk
0:01:03.2]} 25. Rdc1 {[%clk 0:00:47.2]} 25... Rxd5 {[%clk 0:01:01.1]} 26. Rxc7
{[%clk 0:00:46.3]} 26... Rxc7 {[%clk 0:01:00.4]} 27. Rxc7 {[%clk 0:00:47.2]}
27... h5 {[%clk 0:00:45.1]} 28. Rxb7 {[%clk 0:00:46.6]} 28... Rd2 {[%clk
0:00:45.6]} 29. Ke3 {[%clk 0:00:46.7]} 29... Rd8 {[%clk 0:00:40.7]} 30. Bxa6
{[%clk 0:00:40.9]} 30... Re8 {[%clk 0:00:41.1]} 31. Kf2 {[%clk 0:00:40]} 31...
Re6 {[%clk 0:00:36.1]} 32. Be2 {[%clk 0:00:34.4]} 32... Rf6+ {[%clk 0:00:34.2]}
33. Kg3 {[%clk 0:00:31.6]} 33... Be4 {[%clk 0:00:29.4]} 34. Nc4 {[%clk
0:00:28.2]} 34... Rg6+ {[%clk 0:00:13.9]} 35. Kf4 {[%clk 0:00:28.2]} 35... Bxb7
{[%clk 0:00:13.4]} 36. Nxe5 {[%clk 0:00:24.9]} 36... Rxg2 {[%clk 0:00:13.5]} 37.
Bc4 {[%clk 0:00:25.5]} 37... g5+ {[%clk 0:00:11.8]} 38. Ke3 {[%clk 0:00:22.1]}
38... Rxb2 {[%clk 0:00:09.8]} 39. Nxf7 {[%clk 0:00:18.7]} 39... Kg7 {[%clk
0:00:06.9]} 40. Nxg5 {[%clk 0:00:16.3]} 40... Rh2 {[%clk 0:00:04.7]} 41. Ne6+
{[%clk 0:00:13.9]} 41... Kf6 {[%clk 0:00:04.9]} 42. Nf4 {[%clk 0:00:14.2]} 42...
Bc8 {[%clk 0:00:03.1]} 43. a4 {[%clk 0:00:13.5]} 43... Bxh3 {[%clk 0:00:02.7]}
44. a5 {[%clk 0:00:12.2]} 44... Bc8 {[%clk 0:00:02.4]} 45. a6 {[%clk 0:00:11.8]}
45... Rc2 {[%clk 0:00:01.3]} 46. a7 {[%clk 0:00:10.8]} 46... Bb7 {[%clk
0:00:01.3]} 47. Bd5 {[%clk 0:00:11.3]} 1-0

[Event "*** Titled Tuesday Blitz"]
[Site "Chess.com"]
[Date "2020.10.20"]
[Round "5"]
[White "geordie_derraugh"]
[Black "RobertoJBM"]
[Result "1-0"]
[WhiteElo "2395"]
[BlackElo "2683"]
[TimeControl "180+1"]
[EndTime "10:57:44 PDT"]
[Termination "geordie_derraugh won on time"]

1. e4 {[%clk 0:03:00.9]} 1... c6 {[%clk 0:02:59.8]} 2. c4 {[%clk 0:03:00.1]}
2... d5 {[%clk 0:03:00.7]} 3. exd5 {[%clk 0:03:00.5]} 3... Nf6 {[%clk
0:03:00.4]} 4. Nf3 {[%clk 0:02:58.3]} 4... cxd5 {[%clk 0:03:00.3]} 5. cxd5
{[%clk 0:02:58.3]} 5... Nxd5 {[%clk 0:03:00]} 6. Nc3 {[%clk 0:02:58.9]} 6... e6
{[%clk 0:02:59.9]} 7. Bc4 {[%clk 0:02:58.1]} 7... Be7 {[%clk 0:02:58.9]} 8. O-O
{[%clk 0:02:57.8]} 8... O-O {[%clk 0:02:58.3]} 9. Re1 {[%clk 0:02:57.1]} 9...
Nc6 {[%clk 0:02:57.2]} 10. d4 {[%clk 0:02:57]} 10... Bf6 {[%clk 0:02:54.7]} 11.
Bb3 {[%clk 0:02:53.3]} 11... Nce7 {[%clk 0:02:52.5]} 12. a3 {[%clk 0:02:50.5]}
12... Bd7 {[%clk 0:02:50.4]} 13. Bc2 {[%clk 0:02:49.5]} 13... Bc6 {[%clk
0:02:49]} 14. Ne5 {[%clk 0:02:41.9]} 14... Nxc3 {[%clk 0:02:34.4]} 15. bxc3
{[%clk 0:02:21.5]} 15... g6 {[%clk 0:02:24.2]} 16. Qg4 {[%clk 0:02:14.9]} 16...
Nf5 {[%clk 0:02:04.3]} 17. Nxc6 {[%clk 0:01:22.6]} 17... bxc6 {[%clk 0:02:02.6]}
18. Qf3 {[%clk 0:01:22.9]} 18... Rc8 {[%clk 0:01:56.2]} 19. Rb1 {[%clk 0:01:23]}
19... c5 {[%clk 0:01:39.2]} 20. Bxf5 {[%clk 0:01:22.3]} 20... exf5 {[%clk
0:01:20.5]} 21. d5 {[%clk 0:01:20.5]} 21... c4 {[%clk 0:01:12.9]} 22. Rd1 {[%clk
0:01:15.1]} 22... Qa5 {[%clk 0:01:06.8]} 23. Rb4 {[%clk 0:01:09.5]} 23... Rfd8
{[%clk 0:01:05.5]} 24. g4 {[%clk 0:01:06.8]} 24... Rc5 {[%clk 0:00:46.8]} 25.
gxf5 {[%clk 0:01:00.8]} 25... Rcxd5 {[%clk 0:00:43.9]} 26. Rxd5 {[%clk
0:00:53.8]} 26... Qxd5 {[%clk 0:00:44.8]} 27. Qxd5 {[%clk 0:00:46.1]} 27... Rxd5
{[%clk 0:00:43.3]} 28. Bh6 {[%clk 0:00:46.7]} 28... gxf5 {[%clk 0:00:26.2]} 29.
Rxc4 {[%clk 0:00:44.1]} 29... Bd8 {[%clk 0:00:19.4]} 30. Rc8 {[%clk 0:00:41.8]}
30... f6 {[%clk 0:00:19.7]} 31. Be3 {[%clk 0:00:36.2]} 31... Kf7 {[%clk
0:00:15.8]} 32. Bxa7 {[%clk 0:00:35.9]} 32... Be7 {[%clk 0:00:15.9]} 33. Rc7
{[%clk 0:00:26]} 33... Ke6 {[%clk 0:00:15.5]} 34. a4 {[%clk 0:00:26.5]} 34...
Ra5 {[%clk 0:00:15.2]} 35. Bd4 {[%clk 0:00:23.4]} 35... Rxa4 {[%clk 0:00:15.2]}
36. Rc6+ {[%clk 0:00:23.8]} 36... Kd7 {[%clk 0:00:13.7]} 37. Rb6 {[%clk
0:00:22.8]} 37... Rc4 {[%clk 0:00:10.2]} 38. Kg2 {[%clk 0:00:21.1]} 38... Rc8
{[%clk 0:00:08.3]} 39. Rb7+ {[%clk 0:00:20.4]} 39... Ke6 {[%clk 0:00:08.3]} 40.
Kf3 {[%clk 0:00:20.1]} 40... Rc6 {[%clk 0:00:07.4]} 41. Rb2 {[%clk 0:00:19.2]}
41... Bd6 {[%clk 0:00:07]} 42. h3 {[%clk 0:00:19.5]} 42... Be5 {[%clk
0:00:07.4]} 43. Rd2 {[%clk 0:00:13.5]} 43... Rc4 {[%clk 0:00:06.3]} 44. Ke3
{[%clk 0:00:10.6]} 44... Kd5 {[%clk 0:00:04.6]} 45. f4 {[%clk 0:00:08.3]} 45...
Bd6 {[%clk 0:00:01.5]} 46. Rf2 {[%clk 0:00:06.3]} 1-0

[Event "*** Titled Tuesday Blitz"]
[Site "Chess.com"]
[Date "2020.10.20"]
[Round "5"]
[White "MokshanovAlexey"]
[Black "Ze-Pequeno"]
[Result "1/2-1/2"]
[WhiteElo "2537"]
[BlackElo "2232"]
[TimeControl "180+1"]
[EndTime "10:57:44 PDT"]
[Termination "Game drawn by repetition"]

1. e4 {[%clk 0:03:00.9]} 1... c5 {[%clk 0:02:59.6]} 2. Nf3 {[%clk 0:03:00.8]}
2... d6 {[%clk 0:02:59.6]} 3. Bb5+ {[%clk 0:03:00.6]} 3... Bd7 {[%clk
0:02:59.2]} 4. Bxd7+ {[%clk 0:03:00.5]} 4... Qxd7 {[%clk 0:02:59.4]} 5. O-O
{[%clk 0:03:01]} 5... Nf6 {[%clk 0:02:59.5]} 6. Qe2 {[%clk 0:03:00.1]} 6... Nc6
{[%clk 0:02:58.3]} 7. c3 {[%clk 0:03:00.3]} 7... e6 {[%clk 0:02:31.6]} 8. d4
{[%clk 0:02:59.9]} 8... cxd4 {[%clk 0:02:31.5]} 9. cxd4 {[%clk 0:03:00.5]} 9...
d5 {[%clk 0:02:31.9]} 10. e5 {[%clk 0:03:00.7]} 10... Ne4 {[%clk 0:02:32.3]} 11.
Be3 {[%clk 0:03:00.9]} 11... Be7 {[%clk 0:02:29.5]} 12. Ne1 {[%clk 0:03:01]}
12... f5 {[%clk 0:02:07.7]} 13. f3 {[%clk 0:03:00.1]} 13... Ng5 {[%clk 0:02:07]}
14. Nd3 {[%clk 0:02:56.5]} 14... O-O {[%clk 0:02:01.7]} 15. Nd2 {[%clk 0:02:56]}
15... Rac8 {[%clk 0:02:00.7]} 16. Rac1 {[%clk 0:02:53]} 16... Nf7 {[%clk
0:01:56.8]} 17. f4 {[%clk 0:02:51.6]} 17... b6 {[%clk 0:01:52.1]} 18. h3 {[%clk
0:02:40]} 18... Nb4 {[%clk 0:01:49.5]} 19. Nxb4 {[%clk 0:02:36]} 19... Bxb4
{[%clk 0:01:48.6]} 20. Nf3 {[%clk 0:02:33]} 20... Rxc1 {[%clk 0:01:46.2]} 21.
Rxc1 {[%clk 0:02:32.4]} 21... Rc8 {[%clk 0:01:46.6]} 22. Kf2 {[%clk 0:02:15.8]}
22... Rxc1 {[%clk 0:01:44.9]} 23. Bxc1 {[%clk 0:02:16.7]} 23... Qc6 {[%clk
0:01:43.7]} 24. Bd2 {[%clk 0:02:09.3]} 24... Be7 {[%clk 0:01:36.2]} 25. Qa6
{[%clk 0:01:50.4]} 25... Qc7 {[%clk 0:01:34.7]} 26. Ne1 {[%clk 0:01:43.9]} 26...
Nd8 {[%clk 0:01:28.3]} 27. Nd3 {[%clk 0:01:23]} 27... Kf7 {[%clk 0:01:07]} 28.
Ke3 {[%clk 0:01:09.5]} 28... Ke8 {[%clk 0:01:01.8]} 29. Bc3 {[%clk 0:00:58]}
29... Qb7 {[%clk 0:00:51.1]} 30. Qxb7 {[%clk 0:00:56.5]} 30... Nxb7 {[%clk
0:00:50.8]} 31. Bb4 {[%clk 0:00:57]} 31... Bd8 {[%clk 0:00:44.9]} 32. g4 {[%clk
0:00:56.1]} 32... g6 {[%clk 0:00:44.2]} 33. a4 {[%clk 0:00:54.3]} 33... Kd7
{[%clk 0:00:42.8]} 34. Nc1 {[%clk 0:00:48.1]} 34... Kc6 {[%clk 0:00:39.7]} 35.
Ne2 {[%clk 0:00:44]} 35... b5 {[%clk 0:00:32.2]} 36. b3 {[%clk 0:00:43.8]} 36...
bxa4 {[%clk 0:00:31.1]} 37. bxa4 {[%clk 0:00:43.7]} 37... Na5 {[%clk 0:00:22.1]}
38. Bxa5 {[%clk 0:00:41.2]} 38... Bxa5 {[%clk 0:00:23]} 39. Ng1 {[%clk
0:00:36.4]} 39... Bd8 {[%clk 0:00:19.4]} 40. Nf3 {[%clk 0:00:32.9]} 40... Kb6
{[%clk 0:00:18.9]} 41. gxf5 {[%clk 0:00:33.1]} 41... gxf5 {[%clk 0:00:19.1]} 42.
h4 {[%clk 0:00:19.4]} 42... Kc6 {[%clk 0:00:18.8]} 43. h5 {[%clk 0:00:18.8]}
43... Kd7 {[%clk 0:00:18.4]} 44. Ng5 {[%clk 0:00:12.6]} 44... Bxg5 {[%clk
0:00:17.8]} 45. fxg5 {[%clk 0:00:12.8]} 45... Ke7 {[%clk 0:00:18.7]} 46. Kf3
{[%clk 0:00:13]} 46... Kf7 {[%clk 0:00:18.6]} 47. Kg3 {[%clk 0:00:13.4]} 47...
Kg7 {[%clk 0:00:18.9]} 48. Kf3 {[%clk 0:00:13.9]} 48... Kf7 {[%clk 0:00:19.1]}
49. Kg3 {[%clk 0:00:14.4]} 49... a5 {[%clk 0:00:18.8]} 50. Kf3 {[%clk
0:00:14.4]} 50... Kg7 {[%clk 0:00:19.3]} 51. Kg3 {[%clk 0:00:14.8]} 51... Kf7
{[%clk 0:00:19.8]} 52. Kf3 {[%clk 0:00:15.2]} 52... Kg7 {[%clk 0:00:20.2]} 53.
Kg3 {[%clk 0:00:15.6]} 53... Kf7 {[%clk 0:00:20.5]} 1/2-1/2